fUST/lending_fUST_20250422
["ID","MTS","AMOUNT","RATE_DAILY","PERIOD"]
[358611878,1745310643421,-500.0,0.00021917,2]
[358611879,1745310643431,-500.0,0.00021917,2]
[358611880,1745310643443,-504.36818305,0.00021917,2]
[358611881,1745310643453,-500.0,0.00021917,2]
[358611882,1745310643465,-500.0,0.00021917,2]
[358611883,1745310643475,-500.0,0.00021917,2]
[358611884,1745310643485,-500.0,0.00021917,2]
[358611885,1745310643495,-500.0,0.00021917,2]
[358611887,1745310643505,-819.17,0.00021917,2]
[358611888,1745310643515,-500.0,0.00021917,2]
[358611889,1745310643525,-503.84499358,0.00021917,2]
[358611890,1745310643535,-500.0,0.00021917,2]
[358611892,1745310643545,-500.0,0.00021917,2]
[358611893,1745310643555,-500.0,0.00021917,2]
[358611894,1745310643565,-500.9789049,0.00021917,2]
[358611895,1745310643575,-500.72213027,0.00021917,2]
[358611896,1745310643585,-510.94224512,0.00021917,2]
[358611897,1745310643595,-500.0,0.00021917,2]
[358611898,1745310643606,-500.38854713,0.00021917,2]
[358611899,1745310643616,-500.0,0.00021917,2]
[358611900,1745310643628,-500.54584082,0.00021917,2]
[358611901,1745310643637,-500.0,0.00021917,2]
[358611902,1745310643648,-500.0,0.00021917,2]
[358611903,1745310643658,-501.6392945,0.00021917,2]
[358611904,1745310643668,-500.0,0.00021917,2]
[358611905,1745310643678,-500.0,0.00021917,2]
[358611906,1745310643688,-500.0,0.00021917,2]
[358611907,1745310643699,-500.0,0.00021917,2]
[358611908,1745310643708,-500.0,0.00021917,2]
[358611909,1745310643718,-500.0,0.00021917,2]
[358611910,1745310643729,-502.40067337,0.00021917,2]
[358611911,1745310643739,-500.0,0.00021917,2]
[358611912,1745310643749,-500.0,0.00021917,2]
[358611914,1745310643759,-500.0,0.00021917,2]
[358611915,1745310643768,-500.0,0.00021917,2]
[358611918,1745310643778,-500.0,0.00021917,2]
[358611920,1745310643789,-500.0,0.00021917,2]
[358611922,1745310643799,-500.0,0.00021917,2]
[358611924,1745310643809,-500.0,0.00021917,2]
[358611926,1745310643820,-501.15513965,0.00021917,2]
[358611928,1745310643830,-500.0,0.00021917,2]
[358611930,1745310643839,-500.0,0.00021917,2]
[358611932,1745310643849,-500.0,0.00021917,2]
[358611935,1745310643859,-500.0,0.00021917,2]
[358611938,1745310643869,-596.72,0.00021917,2]
[358611942,1745310643879,-500.0,0.00021917,2]
[358611944,1745310643889,-500.0,0.00021917,2]
[358611946,1745310643900,-532.15280362,0.00021917,2]
[358611948,1745310643910,-500.0,0.00021917,2]
[358611950,1745310643919,-500.0,0.00021917,2]
[358611952,1745310643929,-500.0,0.00021917,2]
[358611954,1745310643939,-511.40079874,0.00021917,2]
[358611956,1745310643949,-500.0,0.00021917,2]
[358611958,1745310643959,-500.0,0.00021917,2]
[358611960,1745310643969,-500.0,0.00021917,2]
[358611962,1745310643979,-539.06370772,0.00021917,2]
[358611964,1745310643989,-500.0,0.00021917,2]
[358611966,1745310643998,-500.0,0.00021917,2]
[358611968,1745310644008,-500.85644021,0.00021917,2]
[358611970,1745310644018,-501.09037754,0.00021917,2]
[358611972,1745310644028,-500.0,0.00021917,2]
[358611974,1745310644038,-500.0,0.00021917,2]
[358611975,1745310644048,-503.20572733,0.00021917,2]
[358611976,1745310644058,-500.0,0.00021917,2]
[358611977,1745310644067,-500.0,0.00021917,2]
[358611979,1745310644078,-500.0,0.00021917,2]
[358611981,1745310644088,-507.26804273,0.00021917,2]
[358611983,1745310644098,-500.0,0.00021917,2]
[358611985,1745310644109,-500.0,0.00021917,2]
[358611987,1745310644119,-500.0,0.00021917,2]
[358611989,1745310644130,-500.0,0.00021917,2]
[358611990,1745310644140,-500.0,0.00021917,2]
[358611991,1745310644150,-500.0,0.00021917,2]
[358611992,1745310644160,-888.24,0.00021917,2]
[358611993,1745310644170,-500.0,0.00021917,2]
[358611994,1745310644181,-500.80780105,0.00021917,2]
[358611996,1745310644191,-500.0,0.00021917,2]
[358611997,1745310644201,-500.0,0.00021917,2]
[358611998,1745310644211,-560.89743053,0.00021917,2]
[358611999,1745310644221,-506.80313246,0.00021917,2]
[358612000,1745310644232,-500.0,0.00021917,2]
[358612001,1745310644242,-502.8591018,0.00021917,2]
[358612002,1745310644252,-500.0,0.00021917,2]
[358612003,1745310644263,-504.53398228,0.00021917,2]
[358612004,1745310644273,-505.82877217,0.00021917,2]
[358612005,1745310644283,-500.0,0.00021917,2]
[358612006,1745310644294,-500.0,0.00021917,2]
[358612007,1745310644304,-500.0,0.00021917,2]
[358612008,1745310644314,-501.31299266,0.00021917,2]
[358612009,1745310644324,-500.0,0.00021917,2]
[358612010,1745310644334,-504.59063616,0.00021917,2]
[358612011,1745310644345,-685.98,0.00021917,2]
[358612012,1745310644358,-500.0,0.00021917,2]
[358612013,1745310644368,-500.0,0.00021917,2]
[358612014,1745310644379,-500.0,0.00021917,2]
[358612015,1745310644389,-500.0,0.00021917,2]
[358612016,1745310644400,-424.38447612,0.00021917,2]
[358612017,1745310644410,-500.0,0.00021917,2]
[358612018,1745310644420,-505.38449076,0.00021917,2]
[358612019,1745310644430,-500.73143921,0.00021917,2]
[358612020,1745310644441,-500.0,0.00021917,2]
[358612021,1745310644451,-500.0,0.00021917,2]
[358612022,1745310644463,-500.0,0.00021917,2]
[358612023,1745310644472,-500.0,0.00021917,2]
[358612024,1745310644482,-500.0,0.00021917,2]
[358612025,1745310644492,-500.0,0.00021917,2]
[358612026,1745310644502,-500.0,0.00021917,2]
[358612027,1745310644512,-500.0,0.00021917,2]
[358612028,1745310644523,-501.59604915,0.00021917,2]
[358612029,1745310644533,-500.0,0.00021917,2]
[358612030,1745310644543,-500.0,0.00021917,2]
[358612031,1745310644553,-501.58549164,0.00021917,2]
[358612032,1745310644563,-500.0,0.00021917,2]
[358612033,1745310644573,-500.0,0.00021917,2]
[358612034,1745310644583,-503.35620175,0.00021917,2]
[358612035,1745310644593,-500.0,0.00021917,2]
[358612036,1745310644603,-846.44,0.00021917,2]
[358612037,1745310644612,-500.97715698,0.00021917,2]
[358612038,1745310644623,-500.0,0.00021917,2]
[358612039,1745310644633,-500.0,0.00021917,2]
[358612040,1745310644643,-500.0,0.00021917,2]
[358612041,1745310644654,-500.0,0.00021917,2]
[358612042,1745310644664,-500.0,0.00021917,2]
[358612043,1745310644674,-500.0,0.00021917,2]
[358612044,1745310644684,-500.98265572,0.00021917,2]
[358612045,1745310644695,-500.89764728,0.00021917,2]
[358612046,1745310644704,-500.0,0.00021917,2]
[358612047,1745310644714,-583.87812834,0.00021917,2]
[358612048,1745310644724,-501.17014706,0.00021917,2]
[358612049,1745310644734,-555.29546178,0.00021917,2]
[358612050,1745310644744,-500.0,0.00021917,2]
[358612051,1745310644754,-515.51396382,0.00021917,2]
[358612052,1745310644764,-501.05130396,0.00021917,2]
[358612053,1745310644775,-500.0,0.00021917,2]
[358612054,1745310644784,-500.0,0.00021917,2]
[358612055,1745310644794,-501.20362368,0.00021917,2]
[358612056,1745310644804,-505.65241723,0.00021917,2]
[358612057,1745310644814,-514.36,0.00021917,2]
[358612058,1745310644824,-500.0,0.00021917,2]
[358612059,1745310644834,-500.0,0.00021917,2]
[358612060,1745310644845,-500.0,0.00021917,2]
[358612061,1745310644855,-500.50826648,0.00021917,2]
[358612062,1745310644866,-500.0,0.00021917,2]
[358612063,1745310644876,-592.95871272,0.00021917,2]
[358612064,1745310644886,-500.0,0.00021917,2]
[358612065,1745310644896,-500.91,0.00021917,2]
[358612066,1745310644906,-582.61,0.00021917,2]
[358612067,1745310644915,-500.0,0.00021917,2]
[358612068,1745310644925,-1612.06,0.00021917,2]
[358612069,1745310644935,-512.78434826,0.00021917,2]
[358612070,1745310644945,-1441.4,0.00021917,2]
[358612071,1745310644956,-500.0,0.00021917,2]
[358612072,1745310644966,-500.0,0.00021917,2]
[358612073,1745310644976,-500.0,0.00021917,2]
[358612074,1745310644987,-607.78,0.00021917,2]
[358612075,1745310644996,-500.60547767,0.00021917,2]
[358612076,1745310645006,-500.0,0.00021917,2]
[358612077,1745310645016,-500.0,0.00021917,2]
[358612078,1745310645025,-546.57177911,0.00021917,2]
[358612079,1745310645035,-500.0,0.00021917,2]
[358612080,1745310645045,-500.0,0.00021917,2]
[358612081,1745310645055,-504.8070756,0.00021917,2]
[358612082,1745310645066,-500.0,0.00021917,2]
[358612083,1745310645076,-500.0,0.00021917,2]
[358612084,1745310645086,-504.12366263,0.00021917,2]
[358612085,1745310645095,-500.0,0.00021917,2]
[358612086,1745310645105,-510.71071946,0.00021917,2]
[358612087,1745310645114,-500.0,0.00021917,2]
[358612088,1745310645124,-578.71,0.00021917,2]
[358612089,1745310645134,-504.30444375,0.00021917,2]
[358612090,1745310645144,-500.98956056,0.00021917,2]
[358612091,1745310645154,-500.0,0.00021917,2]
[358612092,1745310645163,-815.27,0.00021917,2]
[358612093,1745310645173,-500.0,0.00021917,2]
[358612094,1745310645183,-503.14370427,0.00021917,2]
[358612095,1745310645194,-500.0,0.00021917,2]
[358612096,1745310645204,-500.0,0.00021917,2]
[358612097,1745310645214,-1256.9,0.00021917,2]
[358612098,1745310645223,-500.0,0.00021917,2]
[358612099,1745310645234,-500.0,0.00021917,2]
[358612100,1745310645244,-500.0,0.00021917,2]
[358612101,1745310645253,-500.0,0.00021917,2]
[358612102,1745310645263,-500.0,0.00021917,2]
[358612103,1745310645272,-500.0,0.00021917,2]
[358612104,1745310645282,-500.0,0.00021917,2]
[358612105,1745310645291,-500.0,0.00021917,2]
[358612106,1745310645301,-500.0,0.00021917,2]
[358612107,1745310645311,-500.0,0.00021917,2]
[358612108,1745310645321,-500.0,0.00021917,2]
[358612109,1745310645330,-500.0,0.00021917,2]
[358612110,1745310645339,-500.0,0.00021917,2]
[358612111,1745310645349,-500.0,0.00021917,2]
[358612112,1745310645361,-500.0,0.00021917,2]
[358612113,1745310645376,-633.84795498,0.00021917,2]
[358612114,1745310645387,-501.41099759,0.00021917,2]
[358612115,1745310645398,-500.0,0.00021917,2]
[358612116,1745310645408,-1000.0,0.00021917,2]
[358612117,1745310645419,-500.0,0.00021917,2]
[358612118,1745310645429,-500.0,0.00021917,2]
[358612119,1745310645439,-505.62941426,0.00021917,2]
[358612120,1745310645449,-500.0,0.00021917,2]
[358612121,1745310645459,-500.0,0.00021917,2]
[358612122,1745310645470,-500.0,0.00021917,2]
[358612123,1745310645479,-500.0,0.00021917,2]
[358612124,1745310645489,-500.0,0.00021917,2]
[358612125,1745310645499,-500.0,0.00021917,2]
[358612126,1745310645509,-500.0,0.00021917,2]
[358612127,1745310645519,-501.69938003,0.00021917,2]
[358612128,1745310645528,-500.0,0.00021917,2]
[358612129,1745310645538,-500.0,0.00021917,2]
[358612130,1745310645547,-514.36190724,0.00021917,2]
[358612131,1745310645557,-500.0,0.00021917,2]
[358612132,1745310645567,-502.71449283,0.00021917,2]
[358612133,1745310645576,-502.85630333,0.00021917,2]
[358612134,1745310645587,-361.72854456,0.00021917,2]
[358612135,1745310645597,-500.0,0.00021917,2]
[358612136,1745310645607,-500.0,0.00021917,2]
[358612137,1745310645618,-500.0,0.00021917,2]
[358612138,1745310645627,-500.0,0.00021917,2]
[358612139,1745310645637,-500.0,0.00021917,2]
[358612140,1745310645647,-501.43301874,0.00021917,2]
[358612141,1745310645657,-502.36297939,0.00021917,2]
[358612142,1745310645667,-182.39636618,0.00021917,2]
[358612143,1745310645677,-260.47010886,0.00021917,2]
[358612144,1745310645687,-500.0,0.00021917,2]
[358612145,1745310645698,-500.0,0.00021917,2]
[358612146,1745310645708,-160.0,0.00021917,2]
[358612147,1745310645718,-500.0,0.00021917,2]
[358612148,1745310645727,-500.0,0.00021917,2]
[358612149,1745310645737,-500.0,0.00021917,2]
[358612150,1745310645747,-501.53708838,0.00021917,2]
[358612151,1745310645757,-500.0,0.00021917,2]
[358612152,1745310645898,-500.0,0.00021917,2]
[358612153,1745310645909,-500.0,0.00021917,2]
[358612154,1745310645918,-501.25369205,0.00021917,2]
[358612155,1745310645928,-500.0,0.00021917,2]
[358612158,1745310645938,-500.0,0.00021917,2]
[358612160,1745310645949,-500.0,0.00021917,2]
[358612161,1745310645959,-500.0,0.00021917,2]
[358612162,1745310645969,-501.31819858,0.00021917,2]
[358612163,1745310645979,-500.0,0.00021917,2]
[358612164,1745310645990,-500.0,0.00021917,2]
[358612165,1745310645999,-500.0,0.00021917,2]
[358612166,1745310646010,-500.0,0.00021917,2]
[358612167,1745310646020,-500.0,0.00021917,2]
[358612168,1745310646030,-500.0,0.00021917,2]
[358612169,1745310646039,-4362.6,0.00021917,2]
[358612170,1745310646049,-500.24954441,0.00021917,2]
[358612171,1745310646058,-500.71100963,0.00021917,2]
[358612172,1745310646068,-500.0,0.00021917,2]
[358612173,1745310646078,-500.0,0.00021917,2]
[358612174,1745310646089,-500.0,0.00021917,2]
[358612175,1745310646098,-500.0,0.00021917,2]
[358612176,1745310646108,-500.0,0.00021917,2]
[358612177,1745310646119,-5516.63,0.00021917,2]
[358612178,1745310646129,-500.0,0.00021917,2]
[358612179,1745310646139,-500.0,0.00021917,2]
[358612180,1745310646150,-500.0,0.00021917,2]
[358612181,1745310646160,-500.0,0.00021917,2]
[358612182,1745310646170,-500.0,0.00021917,2]
[358612183,1745310646180,-500.0,0.00021917,2]
[358612185,1745310646190,-660.71,0.00021917,2]
[358612187,1745310646200,-500.0,0.00021917,2]
[358612188,1745310646211,-500.0,0.00021917,2]
[358612189,1745310646220,-513.56409681,0.00021917,2]
[358612190,1745310646231,-1339.57,0.00021917,2]
[358612191,1745310646242,-500.0,0.00021917,2]
[358612192,1745310646253,-1949.98,0.00021917,2]
[358612194,1745310646263,-657.23,0.00021917,2]
[358612195,1745310646273,-500.0,0.00021917,2]
[358612196,1745310646284,-748.11,0.00021917,2]
[358612197,1745310646293,-500.0,0.00021917,2]
[358612198,1745310646304,-500.0,0.00021917,2]
[358612200,1745310646314,-500.0,0.00021917,2]
[358612201,1745310646324,-500.0,0.00021917,2]
[358612202,1745310646334,-500.0,0.00021917,2]
[358612203,1745310646343,-500.0,0.00021917,2]
[358612204,1745310646355,-500.0,0.00021917,2]
[358612205,1745310646366,-500.0,0.00021917,2]
[358612207,1745310646376,-500.0,0.00021917,2]
[358612209,1745310646385,-500.0,0.00021917,2]
[358612210,1745310646396,-494.82033752,0.00021917,2]
[358612211,1745310646406,-500.0,0.00021917,2]
[358612212,1745310646416,-500.0,0.00021917,2]
[358612213,1745310646427,-500.0,0.00021917,2]
[358612214,1745310646438,-500.0,0.00021917,2]
[358612215,1745310646448,-8319.1,0.00021917,2]
[358612217,1745310646459,-500.0,0.00021917,2]
[358612218,1745310646469,-500.0,0.00021917,2]
[358612219,1745310646479,-730.52,0.00021917,2]
[358612220,1745310646489,-500.0,0.00021917,2]
[358612221,1745310646499,-500.0,0.00021917,2]
[358612222,1745310646509,-502.89055827,0.00021917,2]
[358612223,1745310646519,-505.64894293,0.00021917,2]
[358612224,1745310646529,-500.0,0.00021917,2]
[358612225,1745310646538,-441.8037443,0.00021917,2]
[358612226,1745310646548,-500.0,0.00021917,2]
[358612227,1745310646557,-500.0,0.00021917,2]
[358612228,1745310646566,-523.76809137,0.00021917,2]
[358612229,1745310646576,-500.0,0.00021917,2]
[358612230,1745310646587,-500.0,0.00021917,2]
[358612231,1745310646597,-500.0,0.00021917,2]
[358612232,1745310646607,-525.55,0.00021917,2]
[358612233,1745310646616,-500.0,0.00021917,2]
[358612234,1745310646627,-500.38574003,0.00021917,2]
[358612235,1745310646637,-500.0,0.00021917,2]
[358612236,1745310646647,-502.79058876,0.00021917,2]
[358612237,1745310646657,-500.0,0.00021917,2]
[358612238,1745310646667,-504.62062538,0.00021917,2]
[358612239,1745310646677,-500.0,0.00021917,2]
[358612240,1745310646687,-506.34277989,0.00021917,2]
[358612241,1745310646697,-500.0,0.00021917,2]
[358612242,1745310646707,-501.91013205,0.00021917,2]
[358612243,1745310646717,-501.45315174,0.00021917,2]
[358612244,1745310646727,-500.0,0.00021917,2]
[358612245,1745310646737,-509.04495403,0.00021917,2]
[358612247,1745310646746,-503.54395396,0.00021917,2]
[358612248,1745310646756,-500.0,0.00021917,2]
[358612249,1745310646766,-500.65093928,0.00021917,2]
[358612250,1745310646776,-650.68,0.00021917,2]
[358612251,1745310646786,-504.19987783,0.00021917,2]
[358612252,1745310646796,-541.53295048,0.00021917,2]
[358612253,1745310646806,-512.46123513,0.00021917,2]
[358612254,1745310646816,-500.0,0.00021917,2]
[358612255,1745310646826,-503.43116122,0.00021917,2]
[358612256,1745310646836,-508.76780697,0.00021917,2]
[358612257,1745310646845,-501.06768043,0.00021917,2]
[358612258,1745310646855,-500.37353793,0.00021917,2]
[358612259,1745310646865,-502.79384369,0.00021917,2]
[358612260,1745310646875,-500.0,0.00021917,2]
[358612261,1745310646885,-500.0,0.00021917,2]
[358612262,1745310646895,-500.0,0.00021917,2]
[358612263,1745310646907,-500.0,0.00021917,2]
[358612264,1745310646917,-501.11465319,0.00021917,2]
[358612265,1745310646926,-510.26611094,0.00021917,2]
[358612266,1745310646937,-500.0,0.00021917,2]
[358612267,1745310646948,-500.0,0.00021917,2]
[358612268,1745310646957,-500.0,0.00021917,2]
[358612269,1745310646968,-500.0,0.00021917,2]
[358612270,1745310646977,-500.0,0.00021917,2]
[358612271,1745310646987,-500.0,0.00021917,2]
[358612272,1745310646997,-500.0,0.00021917,2]
[358612273,1745310647006,-500.0,0.00021917,2]
[358612274,1745310647016,-500.0,0.00021917,2]
[358612275,1745310647027,-903.42,0.00021917,2]
[358612276,1745310647037,-500.0,0.00021917,2]
[358612277,1745310647046,-500.14583226,0.00021917,2]
[358612278,1745310647056,-500.0,0.00021917,2]
[358612279,1745310647065,-500.0,0.00021917,2]
[358612280,1745310647075,-500.0,0.00021918,2]
[358612281,1745310647086,-500.0,0.00021918,2]
[358612282,1745310647096,-151.0,0.00021918,2]
[358612283,1745310647105,-151.0,0.00021918,2]
[358612284,1745310647115,-203.13675653,0.00021918,2]
[358612285,1745310647124,-151.0,0.00021918,2]
[358612286,1745310647134,-258.19466506,0.00021918,2]
[358612287,1745310647144,-559.95648037,0.0002192,2]
[358612288,1745310647154,-500.0,0.00021973,2]
[358612289,1745310647163,-500.0,0.00021973,2]
[358612290,1745310647173,-500.0,0.00021973,2]
[358612291,1745310647183,-500.0,0.00021973,2]
[358612292,1745310647195,-500.0,0.00021973,2]
[358612293,1745310647204,-500.0,0.00021973,2]
[358612294,1745310647214,-500.0,0.00021973,2]
[358612295,1745310647224,-500.0,0.00021973,2]
[358612296,1745310647235,-500.0,0.00021973,2]
[358612297,1745310647244,-500.0,0.00021973,2]
[358612298,1745310647254,-500.0,0.00021973,2]
[358612299,1745310647264,-500.0,0.00021973,2]
[358612300,1745310647273,-1110.17780975,0.00022,3]
[358612301,1745310647283,-699.999999,0.0002205,2]
[358612302,1745310647293,-1049.5603983,0.00022056,2]
[358612303,1745310647302,-291.26194601,0.000221,2]
[358612304,1745310647312,-160.0,0.00022114,2]
[358612305,1745310647322,-160.0,0.00022114,2]
[358612306,1745310647331,-160.0,0.00022114,2]
[358612307,1745310647341,-12570.97479393,0.00022114,2]
[358612308,1745310647350,-160.0,0.00022114,2]
[358612309,1745310647362,-160.0,0.00022114,2]
[358612310,1745310647372,-420.73667954,0.00022114,2]
[358612311,1745310647382,-729.16666667,0.00022114,2]
[358612312,1745310647391,-160.0,0.00022114,2]
[358612313,1745310647401,-1000.0,0.00022164,2]
[358612314,1745310647411,-1000.0,0.00022164,2]
[358612315,1745310647420,-1000.0,0.00022164,2]
[358612316,1745310647429,-1000.0,0.00022164,2]
[358612318,1745310647443,-340.07268708,0.00022164,2]
[358612319,1745310647453,-151.0,0.00022191,7]
[358612320,1745310647462,-151.0,0.00022191,7]
[358612321,1745310647471,-151.0,0.00022191,7]
[358612322,1745310647482,-500.0,0.00022191,2]
[358612323,1745310647492,-500.0,0.00022191,2]
[358612324,1745310647502,-502.6367566,0.00022191,2]
[358612325,1745310647512,-500.0,0.00022191,2]
[358612326,1745310647522,-500.0,0.00022191,2]
[358612327,1745310647532,-537.55826873,0.00022191,2]
[358612328,1745310647541,-685.92,0.00022191,2]
[358612329,1745310647550,-500.0,0.00022191,2]
[358612330,1745310647559,-500.0,0.00022191,2]
[358612331,1745310647569,-500.0,0.00022191,2]
[358612332,1745310647578,-447.21144584,0.00022191,2]
[358612333,1745310647587,-500.0,0.00022191,2]
[358612334,1745310647596,-502.2594155,0.00022191,2]
[358612335,1745310647606,-500.0,0.00022191,2]
[358612336,1745310647615,-500.0,0.00022191,2]
[358612337,1745310647625,-631.68,0.00022191,2]
[358612338,1745310647634,-500.0,0.00022191,2]
[358612339,1745310647643,-518.47225159,0.00022191,2]
[358612340,1745310647654,-527.08090028,0.00022191,2]
[358612341,1745310647663,-500.0,0.00022191,2]
[358612342,1745310647673,-500.0,0.00022191,2]
[358612343,1745310647683,-500.0,0.00022191,2]
[358612344,1745310647693,-500.0,0.00022191,2]
[358612345,1745310647703,-500.0,0.00022191,2]
[358612347,1745310647712,-537.17375526,0.00022191,2]
[358612348,1745310647722,-500.0,0.00022191,2]
[358612349,1745310647732,-500.0,0.00022191,2]
[358612350,1745310647742,-500.0,0.00022191,2]
[358612351,1745310647751,-500.0,0.00022191,2]
[358612352,1745310647761,-500.0,0.00022191,2]
[358612353,1745310647771,-500.0,0.00022191,2]
[358612354,1745310647780,-731.14,0.00022191,2]
[358612356,1745310647790,-284.96993168,0.00022191,2]
[358612357,1745310647800,-500.0,0.00022191,2]
[358612358,1745310647810,-500.0,0.00022191,2]
[358612359,1745310647819,-500.0,0.00022191,2]
[358612360,1745310647829,-500.0,0.00022191,2]
[358612361,1745310647838,-500.0,0.00022191,2]
[358612362,1745310647848,-505.71485534,0.00022191,2]
[358612363,1745310647858,-426.54083564,0.00022191,2]
[358612364,1745310647868,-500.0,0.00022191,2]
[358612365,1745310647878,-500.83553749,0.00022191,2]
[358612366,1745310647888,-500.0,0.00022191,2]
[358612367,1745310647898,-500.0,0.00022191,2]
[358612368,1745310647908,-506.69458991,0.00022191,2]
[358612369,1745310647917,-500.0,0.00022191,2]
[358612370,1745310647927,-519.03921648,0.00022191,2]
[358612371,1745310647936,-500.0,0.00022191,2]
[358612372,1745310647947,-500.0,0.00022191,2]
[358612374,1745310647956,-500.0,0.00022191,2]
[358612375,1745310647966,-500.0,0.00022191,2]
[358612376,1745310647975,-500.0,0.00022191,2]
[358612377,1745310647985,-624.40303716,0.00022191,2]
[358612378,1745310647995,-294.07193518,0.00022191,2]
[358612379,1745310648004,-500.0,0.00022191,2]
[358612380,1745310648013,-500.0,0.00022191,2]
[358612381,1745310648022,-504.12791805,0.00022191,2]
[358612382,1745310648032,-434.10998265,0.00022191,2]
[358612383,1745310648042,-500.0,0.00022191,2]
[358612384,1745310648051,-503.7637239,0.00022191,2]
[358612385,1745310648061,-507.63142664,0.00022191,2]
[358612386,1745310648070,-500.0,0.00022191,2]
[358612387,1745310648080,-500.0,0.00022191,2]
[358612388,1745310648090,-500.0,0.00022191,2]
[358612389,1745310648100,-315.70286411,0.00022191,2]
[358612390,1745310648109,-505.30892217,0.00022191,2]
[358612391,1745310648119,-687.94,0.00022191,2]
[358612392,1745310648130,-500.0,0.00022191,2]
[358612393,1745310648140,-500.0,0.00022191,2]
[358612394,1745310648150,-292.85161093,0.00022191,2]
[358612395,1745310648160,-500.0,0.00022191,2]
[358612396,1745310648170,-506.01241811,0.00022191,2]
[358612397,1745310648179,-504.56816685,0.00022191,2]
[358612398,1745310648188,-500.0,0.00022191,2]
[358612399,1745310648198,-500.0,0.00022191,2]
[358612400,1745310648208,-500.0,0.00022191,2]
[358612401,1745310648218,-1145.04,0.00022191,2]
[358612402,1745310648228,-500.0,0.00022191,2]
[358612403,1745310648237,-522.24,0.00022191,2]
[358612404,1745310648247,-500.0,0.00022191,2]
[358612405,1745310648258,-500.0,0.00022191,2]
[358612406,1745310648267,-500.0,0.00022191,2]
[358612407,1745310648277,-500.0,0.00022191,2]
[358612408,1745310648287,-500.0,0.00022191,2]
[358612409,1745310648297,-500.0,0.00022191,2]
[358612410,1745310648307,-500.0,0.00022191,2]
[358612411,1745310648316,-500.0,0.00022191,2]
[358612412,1745310648325,-500.0,0.00022191,2]
[358612413,1745310648335,-500.0,0.00022191,2]
[358612414,1745310648345,-475.92744178,0.00022191,2]
[358612415,1745310648355,-500.0,0.00022191,2]
[358612416,1745310648371,-500.0,0.00022191,2]
[358612417,1745310648381,-500.0,0.00022191,2]
[358612418,1745310648391,-500.0,0.00022191,2]
[358612419,1745310648401,-156.4152992,0.00022191,2]
[358612420,1745310648412,-500.0,0.00022191,2]
[358612421,1745310648423,-500.0,0.00022191,2]
[358612422,1745310648433,-500.0,0.00022191,2]
[358612423,1745310648444,-500.0,0.00022191,2]
[358612424,1745310648454,-500.0,0.00022191,2]
[358612425,1745310648464,-500.0,0.00022191,2]
[358612426,1745310648473,-500.0,0.00022191,2]
[358612427,1745310648483,-500.0,0.00022191,2]
[358612428,1745310648493,-500.0,0.00022191,2]
[358612429,1745310648503,-500.0,0.00022191,2]
[358612430,1745310648513,-744.32,0.00022191,2]
[358612431,1745310648523,-500.0,0.00022191,2]
[358612432,1745310648534,-678.24,0.00022191,2]
[358612433,1745310648543,-500.0,0.00022191,2]
[358612434,1745310648553,-500.0,0.00022191,2]